fUSD/lending_fUSD_20250308
["ID","MTS","AMOUNT","RATE_DAILY","PERIOD"]
[355655530,1741441847378,-500.0,8.219e-05,2]
[355655531,1741441847388,-500.0,8.219e-05,2]
[355655532,1741441847397,-512.827905,8.219e-05,2]
[355655533,1741441847406,-500.0,8.219e-05,2]
[355655534,1741441847416,-500.0,8.219e-05,2]
[355655535,1741441847425,-590.79,8.219e-05,2]
[355655536,1741441847435,-500.0,8.219e-05,2]
[355655537,1741441847444,-709.91,8.219e-05,2]
[355655538,1741441847453,-1163.55,8.219e-05,2]
[355655539,1741441847463,-161.73007748,8.219e-05,2]
[355655540,1741441847473,-1066.93,8.219e-05,2]
[355655541,1741441847483,-500.0,8.219e-05,2]
[355655542,1741441847492,-554.88,8.219e-05,2]
[355655543,1741441847501,-500.0,8.219e-05,2]
[355655544,1741441847511,-460.76632365,8.219e-05,2]
[355655545,1741441847520,-500.0,8.219e-05,2]
[355655546,1741441847529,-500.0,8.219e-05,2]
[355655547,1741441847539,-500.0,8.219e-05,2]
[355655548,1741441847548,-500.0,8.219e-05,2]
[355655549,1741441847557,-500.0,8.219e-05,2]
[355655550,1741441847567,-694.83,8.219e-05,2]
[355655551,1741441847576,-500.0,8.219e-05,2]
[355655552,1741441847585,-500.0,8.219e-05,2]
[355655553,1741441847598,-500.0,8.219e-05,2]
[355655554,1741441847610,-500.0,8.219e-05,2]
[355655555,1741441847619,-977.45,8.219e-05,2]
[355655556,1741441847628,-500.0,8.219e-05,2]
[355655557,1741441847639,-500.0,8.219e-05,2]
[355655558,1741441847648,-725.25,8.219e-05,2]
[355655559,1741441847658,-546.21,8.219e-05,2]
[355655560,1741441847668,-500.0,8.219e-05,2]
[355655561,1741441847677,-547.29,8.219e-05,2]
[355655562,1741441847687,-500.0,8.219e-05,2]
[355655563,1741441847696,-500.0,8.219e-05,2]
[355655564,1741441847705,-514.40567871,8.219e-05,2]
[355655565,1741441847714,-1070.13,8.219e-05,2]
[355655566,1741441847724,-332.52393822,8.219e-05,2]
[355655567,1741441847733,-500.0,8.219e-05,2]
[355655568,1741441847743,-509.35210353,8.219e-05,2]
[355655569,1741441847752,-500.0,8.219e-05,2]
[355655570,1741441847761,-500.0,8.219e-05,2]
[355655571,1741441847771,-500.0,8.219e-05,2]
[355655572,1741441847780,-510.17026077,8.219e-05,2]
[355655573,1741441847789,-501.67273221,8.219e-05,2]
[355655574,1741441847799,-500.0,8.219e-05,2]
[355655575,1741441847809,-942.46,8.219e-05,2]
[355655576,1741441847819,-547.37,8.219e-05,2]
[355655577,1741441847829,-500.0,8.219e-05,2]
[355655578,1741441847839,-500.0,8.219e-05,2]
[355655579,1741441847849,-505.97283104,8.219e-05,2]
[355655580,1741441847860,-485.5469266,8.219e-05,2]
[355655581,1741441847870,-243.53000122,8.219e-05,2]
[355655582,1741441847884,-500.0,8.219e-05,2]
[355655583,1741441847893,-500.0,8.219e-05,2]
[355655584,1741441847903,-620.65,8.219e-05,2]
[355655585,1741441847913,-513.32317587,8.219e-05,2]
[355655586,1741441847924,-500.0,8.219e-05,2]
[355655587,1741441847934,-504.00229054,8.219e-05,2]
[355655588,1741441847943,-1293.51,8.219e-05,2]
[355655589,1741441847952,-500.0,8.219e-05,2]
[355655590,1741441847964,-500.0,8.219e-05,2]
[355655591,1741441847973,-500.0,8.219e-05,2]
[355655592,1741441847983,-771.63,8.219e-05,2]
[355655593,1741441847994,-500.0,8.219e-05,2]
[355655594,1741441848003,-500.0,8.219e-05,2]
[355655595,1741441848013,-798.24,8.219e-05,2]
[355655596,1741441848022,-505.48323209,8.219e-05,2]
[355655597,1741441848031,-503.83,8.219e-05,2]
[355655598,1741441848041,-1271.59,8.219e-05,2]
[355655599,1741441848051,-500.0,8.219e-05,2]
[355655600,1741441848061,-500.0,8.219e-05,2]
[355655601,1741441848071,-500.0,8.219e-05,2]
[355655602,1741441848081,-500.0,8.219e-05,2]
[355655603,1741441848091,-500.0,8.219e-05,2]
[355655604,1741441848103,-500.0,8.219e-05,2]
[355655605,1741441848113,-692.72,8.219e-05,2]
[355655606,1741441848124,-500.0,8.219e-05,2]
[355655607,1741441848134,-509.68529075,8.219e-05,2]
[355655608,1741441848144,-800.19,8.219e-05,2]
[355655609,1741441848153,-521.72,8.219e-05,2]
[355655610,1741441848164,-500.0,8.219e-05,2]
[355655611,1741441848173,-361.77247754,8.219e-05,2]
[355655612,1741441848183,-772.71,8.219e-05,2]
[355655613,1741441848193,-514.43,8.219e-05,2]
[355655614,1741441848203,-1268.51,8.219e-05,2]
[355655615,1741441848212,-500.0,8.219e-05,2]
[355655616,1741441848222,-500.0,8.219e-05,2]
[355655617,1741441848231,-500.0,8.219e-05,2]
[355655618,1741441848240,-500.0,8.219e-05,2]
[355655619,1741441848250,-1162.38,8.219e-05,2]
[355655620,1741441848260,-500.0,8.219e-05,2]
[355655621,1741441848270,-500.0,8.219e-05,2]
[355655622,1741441848280,-503.18296793,8.219e-05,2]
[355655623,1741441848292,-1277.1,8.219e-05,2]
[355655624,1741441848307,-1451.55,8.219e-05,2]
[355655625,1741441848317,-508.32405447,8.219e-05,2]
[355655626,1741441848327,-619.96100194,8.219e-05,2]
[355655627,1741441848337,-500.0,8.219e-05,2]
[355655628,1741441848346,-304.23310645,8.219e-05,2]
[355655629,1741441848357,-500.0,8.219e-05,2]
[355655630,1741441848366,-500.0,8.219e-05,2]
[355655631,1741441848376,-500.0,8.219e-05,2]
[355655632,1741441848386,-576.33,8.219e-05,2]
[355655633,1741441848397,-500.0,8.219e-05,2]
[355655634,1741441848407,-500.0,8.219e-05,2]
[355655635,1741441848416,-500.0,8.219e-05,2]
[355655636,1741441848426,-500.0,8.219e-05,2]
[355655637,1741441848436,-522.12,8.219e-05,2]
[355655638,1741441848446,-500.0,8.219e-05,2]
[355655639,1741441848456,-506.68853831,8.219e-05,2]
[355655640,1741441848466,-500.0,8.219e-05,2]
[355655641,1741441848477,-515.89566893,8.219e-05,2]
[355655642,1741441848487,-500.0,8.219e-05,2]
[355655643,1741441848497,-500.0,8.219e-05,2]
[355655644,1741441848507,-500.0,8.219e-05,2]
[355655645,1741441848516,-500.0,8.219e-05,2]
[355655646,1741441848525,-500.0,8.219e-05,2]
[355655647,1741441848535,-500.0,8.219e-05,2]
[355655648,1741441848545,-500.0,8.219e-05,2]
[355655649,1741441848555,-500.0,8.219e-05,2]
[355655650,1741441848565,-506.10170865,8.219e-05,2]
[355655651,1741441848575,-983.98,8.219e-05,2]
[355655652,1741441848585,-500.0,8.219e-05,2]
[355655653,1741441848599,-343.65679705,8.219e-05,2]
[355655654,1741441848615,-629.89,8.219e-05,2]
[355655655,1741441848626,-500.0,8.219e-05,2]
[355655656,1741441848638,-500.0,8.219e-05,2]
[355655657,1741441848648,-500.0,8.219e-05,2]
[355655658,1741441848657,-500.0,8.219e-05,2]
[355655659,1741441848667,-1080.08,8.219e-05,2]
[355655660,1741441848679,-500.0,8.219e-05,2]
[355655661,1741441848690,-500.0,8.219e-05,2]
[355655662,1741441848700,-500.0,8.219e-05,2]
[355655663,1741441848711,-500.0,8.219e-05,2]
[355655664,1741441848721,-500.0,8.219e-05,2]
[355655665,1741441848730,-500.0,8.219e-05,2]
[355655666,1741441848741,-500.0,8.219e-05,2]
[355655667,1741441848751,-500.0,8.219e-05,2]
[355655668,1741441848761,-500.0,8.219e-05,2]
[355655669,1741441848771,-1257.22,8.219e-05,2]
[355655670,1741441848781,-500.0,8.219e-05,2]
[355655671,1741441848791,-505.64877468,8.219e-05,2]
[355655672,1741441848802,-500.0,8.219e-05,2]
[355655673,1741441848812,-500.0,8.219e-05,2]
[355655674,1741441848821,-500.0,8.219e-05,2]
[355655675,1741441848831,-500.0,8.219e-05,2]
[355655676,1741441848841,-532.32255949,8.219e-05,2]
[355655677,1741441848852,-500.0,8.219e-05,2]
[355655678,1741441848862,-500.0,8.219e-05,2]
[355655679,1741441848873,-1062.58,8.219e-05,2]
[355655680,1741441848883,-150.42293121,8.219e-05,2]
[355655681,1741441848893,-1451.52,8.219e-05,2]
[355655682,1741441848903,-802.67,8.219e-05,2]
[355655683,1741441848914,-500.0,8.219e-05,2]
[355655684,1741441848923,-1108.22,8.219e-05,2]
[355655685,1741441848934,-568.18,8.219e-05,2]
[355655686,1741441848945,-177.1,8.219e-05,2]
[355655687,1741441848954,-500.0,8.219e-05,2]
[355655688,1741441848964,-500.0,8.219e-05,2]
[355655689,1741441848974,-500.0,8.219e-05,2]
[355655690,1741441848984,-1104.62,8.219e-05,2]
[355655691,1741441848994,-714.2,8.219e-05,2]
[355655692,1741441849003,-639.6915853,8.219e-05,2]
[355655693,1741441849013,-354.10837179,8.219e-05,2]
[355655694,1741441849023,-729.91,8.219e-05,2]
[355655695,1741441849032,-1139.13,8.219e-05,2]
[355655696,1741441849043,-500.0,8.219e-05,2]
[355655697,1741441849053,-500.0,8.219e-05,2]
[355655698,1741441849063,-500.0,8.219e-05,2]
[355655699,1741441849073,-612.35,8.219e-05,2]
[355655700,1741441849082,-1583.19,8.219e-05,2]
[355655701,1741441849092,-4249.22,8.219e-05,2]
[355655702,1741441849101,-500.0,8.219e-05,2]
[355655703,1741441849112,-500.0,8.219e-05,2]
[355655704,1741441849123,-500.0,8.219e-05,2]
[355655705,1741441849133,-1755.23,8.219e-05,2]
[355655706,1741441849143,-195.30772602,8.219e-05,2]
[355655707,1741441849154,-1279.34,8.219e-05,2]
[355655708,1741441849164,-2228.86,8.219e-05,2]
[355655709,1741441849173,-500.0,8.219e-05,2]
[355655710,1741441849183,-1730.64,8.219e-05,2]
[355655711,1741441849193,-6698.73,8.219e-05,2]
[355655712,1741441849204,-500.0,8.219e-05,2]
[355655713,1741441849214,-25465.44,8.219e-05,2]
[355655714,1741441849224,-500.0,8.219e-05,2]
[355655715,1741441849234,-501.61,8.219e-05,2]
[355655716,1741441849244,-606.88,8.219e-05,2]
[355655717,1741441849254,-831.53,8.219e-05,2]
[355655718,1741441849263,-500.0,8.219e-05,2]
[355655719,1741441849273,-5376.37,8.219e-05,2]
[355655720,1741441849283,-2968.97,8.219e-05,2]
[355655721,1741441849293,-603.8,8.219e-05,2]
[355655722,1741441849304,-500.0,8.219e-05,2]
[355655723,1741441849314,-739.02,8.219e-05,2]
[355655724,1741441849324,-500.0,8.219e-05,2]
[355655725,1741441849334,-909.24,8.219e-05,2]
[355655726,1741441849344,-528.65,8.219e-05,2]
[355655727,1741441849354,-2731.16,8.219e-05,2]
[355655728,1741441849364,-2756.55,8.219e-05,2]
[355655729,1741441849374,-500.0,8.219e-05,2]
[355655730,1741441849384,-290.18855426,8.219e-05,2]
[355655731,1741441849394,-2982.32,8.219e-05,2]
[355655732,1741441849405,-500.0,8.219e-05,2]
[355655733,1741441849416,-1373.03,8.219e-05,2]
[355655734,1741441849426,-500.0,8.219e-05,2]
[355655735,1741441849437,-1822.39,8.219e-05,2]
[355655736,1741441849447,-505.31678629,8.219e-05,2]
[355655737,1741441849459,-500.0,8.219e-05,2]
[355655738,1741441849469,-743.87,8.219e-05,2]
[355655739,1741441849480,-3155.0,8.219e-05,2]
[355655740,1741441849490,-777.41,8.219e-05,2]
[355655741,1741441849500,-769.51,8.219e-05,2]
[355655742,1741441849510,-2161.53,8.219e-05,2]
[355655743,1741441849520,-501.93846491,8.219e-05,2]
[355655744,1741441849530,-515.66932786,8.219e-05,2]
[355655745,1741441849540,-659.8,8.219e-05,2]
[355655746,1741441849549,-2073.74,8.219e-05,2]
[355655747,1741441849559,-500.0,8.219e-05,2]
[355655748,1741441849568,-1926.25,8.219e-05,2]
[355655749,1741441849577,-298.12462991,8.219e-05,2]
[355655750,1741441849587,-500.0,8.219e-05,2]
[355655751,1741441849600,-500.0,8.219e-05,2]
[355655752,1741441849611,-500.0,8.219e-05,2]
[355655753,1741441849621,-500.0,8.219e-05,2]
[355655754,1741441849631,-915.66,8.219e-05,2]
[355655755,1741441849640,-500.0,8.219e-05,2]
[355655756,1741441849650,-2215.67,8.219e-05,2]
[355655757,1741441849660,-500.0,8.219e-05,2]
[355655758,1741441849671,-650.91,8.219e-05,2]
[355655759,1741441849681,-986.07,8.219e-05,2]
[355655760,1741441849691,-500.0,8.219e-05,2]
[355655761,1741441849700,-4346.77,8.219e-05,2]
[355655762,1741441849710,-500.0,8.219e-05,2]
[355655763,1741441849720,-595.43,8.219e-05,2]
[355655764,1741441849729,-500.0,8.219e-05,2]
[355655765,1741441849739,-201.95391059,8.219e-05,2]
[355655766,1741441849748,-500.0,8.219e-05,2]
[355655767,1741441849758,-500.0,8.219e-05,2]
[355655768,1741441849768,-500.0,8.219e-05,2]
[355655769,1741441849777,-500.0,8.219e-05,2]
[355655770,1741441849787,-504.34,8.219e-05,2]
[355655771,1741441849796,-500.0,8.219e-05,2]
[355655772,1741441849806,-207.62501444,8.219e-05,2]
[355655773,1741441849816,-2634.93,8.219e-05,2]
[355655774,1741441849825,-500.0,8.219e-05,2]
[355655775,1741441849836,-500.0,8.219e-05,2]
[355655776,1741441849846,-674.28,8.219e-05,2]
[355655777,1741441849857,-296.8222178,8.219e-05,2]
[355655778,1741441849867,-500.0,8.219e-05,2]
[355655779,1741441849876,-1511.32,8.219e-05,2]
[355655780,1741441849886,-500.0,8.219e-05,2]
[355655781,1741441849896,-500.0,8.219e-05,2]
[355655782,1741441849905,-739.05,8.219e-05,2]
[355655783,1741441849914,-2919.4,8.219e-05,2]
[355655784,1741441849924,-1348.8,8.219e-05,2]
[355655785,1741441849934,-500.0,8.219e-05,2]
[355655786,1741441849944,-2044.75,8.219e-05,2]
[355655787,1741441849953,-500.0,8.219e-05,2]
[355655788,1741441849963,-500.0,8.219e-05,2]
[355655789,1741441849973,-3697.41,8.219e-05,2]
[355655790,1741441849983,-1931.48,8.219e-05,2]
[355655791,1741441849992,-939.96,8.219e-05,2]
[355655792,1741441850001,-6212.06,8.219e-05,2]
[355655793,1741441850011,-500.0,8.219e-05,2]
[355655794,1741441850021,-500.0,8.219e-05,2]
[355655795,1741441850030,-500.0,8.219e-05,2]
[355655796,1741441850040,-500.0,8.219e-05,2]
[355655797,1741441850050,-1608.35,8.219e-05,2]
[355655798,1741441850059,-846.25,8.219e-05,2]
[355655799,1741441850069,-3290.96,8.219e-05,2]
[355655800,1741441850079,-1378.27,8.219e-05,2]
[355655801,1741441850089,-1814.33,8.219e-05,2]
[355655802,1741441850099,-500.0,8.219e-05,2]
[355655803,1741441850110,-500.0,8.219e-05,2]
[355655804,1741441850120,-500.0,8.219e-05,2]
[355655805,1741441850130,-1494.58932215,8.219e-05,2]
[355655806,1741441850154,-830.12969053,8.219e-05,2]
[355655807,1741441851212,500.0,7.9e-05,2]
[355655808,1741441851622,1000.0,8e-05,2]
[355655809,1741441939536,200.0,8e-05,2]
[355655812,1741441951310,247.94,8e-05,2]
[355655813,1741442072787,282.34,7.573e-05,2]
[355655814,1741442309550,164.653,8.055e-05,2]
[355655815,1741442309580,1468.764,8.055e-05,2]
[355655816,1741442314929,363.36875421,7.414e-05,2]
[355655817,1741442314952,5054.62124579,7.414e-05,2]
[355655818,1741442317443,1016.9,7.397e-05,2]
[355655819,1741442341750,200.0,7.367e-05,2]
[355655820,1741442375839,165.46,7.572e-05,2]
[355655821,1741442376276,165.46,7.885e-05,2]
[355655822,1741442443417,-267.4352,8.119e-05,2]
[355655823,1741442443437,-1456.8066,8.119e-05,2]
[355655824,1741442443459,-402.46177,8.124e-05,2]
[355655825,1741442443479,-550.0,8.124e-05,2]
[355655826,1741442443499,-402.46176999,8.13e-05,2]
[355655827,1741442443520,-150.0,8.13e-05,2]
[355655828,1741442443540,-185.94,8.141e-05,2]
[355655829,1741442443561,-5301.5101,8.192e-05,2]
[355655830,1741442443581,-165.46,8.197e-05,2]
[355655831,1741442443602,-200.0,8.2e-05,2]
[355655832,1741442443623,-300.0,8.208e-05,2]
[355655833,1741442461725,19117.92456001,8.14e-05,2]
[355655835,1741442543326,171.24,5.919e-05,2]
[355655836,1741442649909,1980.54,7.362e-05,2]
[355655837,1741442662047,1245.77875421,7.349e-05,2]
[355655838,1741442662071,265.03124579,7.349e-05,2]
[355655847,1741442735873,177.03,7.371e-05,2]
[355655864,1741442772551,300.0,0.0002,120]
[355655865,1741442811144,293.72,7.354e-05,2]
[355655866,1741442811342,293.72,7.378e-05,2]
[355655867,1741442811551,293.72,7.401e-05,2]
[355655868,1741442811761,293.72,7.424e-05,2]
[355655869,1741442811990,293.72,7.447e-05,2]
[355655870,1741442812189,293.72,7.471e-05,2]
[355655871,1741442812401,293.72,7.494e-05,2]
[355655872,1741442812635,293.72,7.517e-05,2]
[355655873,1741442812946,293.72,7.54e-05,2]
[355655874,1741442813036,293.72,7.563e-05,2]
[355655875,1741442813264,293.72,7.587e-05,2]
[355655876,1741442813505,293.72,7.61e-05,2]
[355655877,1741442813808,293.72,7.633e-05,2]
[355655878,1741442813985,293.72,7.656e-05,2]
[355655879,1741442814219,293.72,7.68e-05,2]
[355655880,1741442814427,293.72,7.703e-05,2]
[355655881,1741442814637,293.72,7.726e-05,2]
[355655882,1741442815075,293.72,7.749e-05,2]
[355655883,1741442815281,293.72,7.773e-05,2]
[355655884,1741442815492,293.72,7.796e-05,2]
[355655892,1741442834151,800.0,7.9e-05,2]
[355655893,1741442836280,1700.0,8e-05,2]
[355655899,1741443031907,-4500.0,8.119e-05,2]
[355655900,1741443031919,-362.80380498,8.119e-05,2]
[355655901,1741443031999,-2996.94129502,8.119e-05,2]
[355655902,1741443032009,-1005.2085,8.119e-05,2]
[355655903,1741443032018,-550.0,8.122e-05,2]
[355655904,1741443032027,-150.0,8.124e-05,2]
[355655905,1741443032036,-1484.61769399,8.13e-05,2]
[355655906,1741443032053,-24142.5292892,8.13e-05,2]
[355655907,1741443032063,-150.0,8.139e-05,2]
[355655908,1741443032072,-53884.79940514,8.14e-05,2]
[355655909,1741443032082,-501.69612463,8.193e-05,2]
[355655910,1741443032091,-154.37904389,8.193e-05,2]
[355655911,1741443032100,-500.39880557,8.193e-05,2]
[355655912,1741443032110,-159.1184091,8.193e-05,2]
[355655913,1741443032351,-160.27831365,8.193e-05,2]
[355655914,1741443032360,-160.32334025,8.193e-05,2]
[355655915,1741443032369,-300.17844,8.193e-05,2]
[355655916,1741443032378,-151.17464824,8.193e-05,2]
[355655917,1741443032387,-500.24332938,8.193e-05,2]
[355655919,1741443032397,-160.47322996,8.193e-05,2]
[355655921,1741443032407,-161.17220423,8.193e-05,2]
[355655923,1741443032416,-1000.0,8.207e-05,2]
[355655925,1741443032426,-778.35,8.21e-05,2]
[355655926,1741443032435,-344.87,8.21e-05,2]
[355655927,1741443032444,-778.35,8.21e-05,2]
[355655928,1741443032454,-344.87,8.21e-05,2]
[355655929,1741443032463,-778.35,8.21e-05,2]
[355655930,1741443032472,-344.87,8.21e-05,2]
[355655932,1741443032482,-239.11956355,8.217e-05,2]
[355655935,1741443032491,-340.37405161,8.217e-05,2]
[355655938,1741443032500,-1000.0,8.218e-05,2]
[355655940,1741443032510,-3698.75,8.218e-05,2]
[355655941,1741443032519,-348.83,8.218e-05,2]
[355655942,1741443032529,-299.99,8.218e-05,2]
[355655943,1741443032539,-1719.75,8.218e-05,2]
[355655944,1741443032548,-500.0,8.218e-05,2]
[355655945,1741443032558,-500.0,8.218e-05,2]
[355655946,1741443032567,-180.80647956,8.218e-05,2]
[355655947,1741443032576,-860.28,8.218e-05,2]
[355655948,1741443032586,-9288.4,8.218e-05,2]
[355655949,1741443032595,-150.99,8.218e-05,2]
[355655950,1741443032605,-6827.43,8.218e-05,2]
[355655951,1741443032614,-87683.56,8.218e-05,2]
[355655952,1741443032624,-180.249283,8.219e-05,2]
[355655953,1741443032634,-164.754437,8.219e-05,2]
[355655954,1741443032643,-180.249283,8.219e-05,2]
[355655955,1741443032653,-164.754436,8.219e-05,2]
[355655956,1741443032662,-180.249283,8.219e-05,2]
[355655957,1741443032671,-164.754437,8.219e-05,2]
[355655958,1741443032680,-500.0,8.219e-05,2]
[355655959,1741443032690,-409.38603957,8.219e-05,2]
[355655960,1741443032699,-500.0,8.219e-05,2]
[355655961,1741443032709,-500.0,8.219e-05,2]
[355655962,1741443032719,-500.0,8.219e-05,2]
[355655963,1741443032728,-500.0,8.219e-05,2]
[355655964,1741443032737,-500.0,8.219e-05,2]
[355655965,1741443032747,-560.61,8.219e-05,2]
[355655966,1741443032756,-520.96,8.219e-05,2]
[355655967,1741443032765,-180.249283,8.219e-05,2]
[355655968,1741443032774,-350.0,8.219e-05,2]
[355655969,1741443032784,-512.35,8.219e-05,2]
[355655970,1741443032794,-164.754437,8.219e-05,2]
[355655971,1741443032804,-506.08552641,8.219e-05,2]
[355655972,1741443032813,-505.29915369,8.219e-05,2]
[355655973,1741443032822,-629.25,8.219e-05,2]
[355655974,1741443032832,-500.0,8.219e-05,2]
[355655975,1741443032841,-581.53,8.219e-05,2]
[355655976,1741443032850,-500.0,8.219e-05,2]
[355655977,1741443032859,-500.0,8.219e-05,2]
[355655978,1741443032869,-500.0,8.219e-05,7]
[355655979,1741443032879,-180.249283,8.219e-05,2]
[355655980,1741443032888,-518.97163631,8.219e-05,2]
[355655981,1741443032898,-500.0,8.219e-05,2]
[355655982,1741443032907,-500.0,8.219e-05,2]
[355655983,1741443032918,-164.754436,8.219e-05,2]
[355655984,1741443032927,-646.43464689,8.219e-05,2]
[355655985,1741443032936,-545.15,8.219e-05,2]
[355655986,1741443032946,-507.85029759,8.219e-05,2]
[355655987,1741443032956,-500.0,8.219e-05,2]
[355655988,1741443032965,-505.36429903,8.219e-05,2]
[355655989,1741443032974,-180.249283,8.219e-05,2]
[355655990,1741443032987,-500.0,8.219e-05,2]
[355655991,1741443032996,-500.0,8.219e-05,2]
[355655992,1741443033006,-500.0,8.219e-05,2]
[355655993,1741443033015,-500.0,8.219e-05,2]
[355655994,1741443033025,-512.23775438,8.219e-05,2]
[355655995,1741443033035,-164.754437,8.219e-05,2]
[355655996,1741443033045,-500.0,8.219e-05,2]
[355655997,1741443033055,-768.03,8.219e-05,2]
[355655998,1741443033066,-500.0,8.219e-05,2]
[355655999,1741443033076,-784.5,8.219e-05,2]
[355656000,1741443033086,-509.91897133,8.219e-05,2]
[355656001,1741443033096,-500.0,8.219e-05,2]
[355656002,1741443033105,-506.97535448,8.219e-05,2]
[355656003,1741443033115,-524.49,8.219e-05,2]
[355656004,1741443033124,-814.58,8.219e-05,2]
[355656005,1741443033134,-500.0,8.219e-05,2]
[355656006,1741443033143,-500.0,8.219e-05,2]
[355656007,1741443033153,-500.0,8.219e-05,2]
[355656008,1741443033164,-500.0,8.219e-05,2]
[355656009,1741443033174,-1260.83,8.219e-05,2]
[355656010,1741443033184,-500.0,8.219e-05,2]
[355656011,1741443033193,-615.62,8.219e-05,2]
[355656012,1741443033203,-500.0,8.219e-05,2]
[355656013,1741443033214,-552.32,8.219e-05,2]
[355656014,1741443033223,-500.0,8.219e-05,2]
[355656015,1741443033232,-500.0,8.219e-05,2]
[355656016,1741443033242,-660.81,8.219e-05,2]
[355656017,1741443033252,-500.0,8.219e-05,2]
[355656018,1741443033262,-500.0,8.219e-05,2]
[355656019,1741443033272,-754.13,8.219e-05,2]
[355656020,1741443033282,-500.0,8.219e-05,2]
[355656021,1741443033291,-500.0,8.219e-05,2]
[355656022,1741443033301,-500.0,8.219e-05,2]
[355656023,1741443033311,-727.614314,8.219e-05,2]
[355656024,1741443033321,-1102.71,8.219e-05,2]
[355656025,1741443033331,-500.0,8.219e-05,2]
[355656026,1741443033341,-500.0,8.219e-05,2]
[355656027,1741443033351,-500.0,8.219e-05,2]
[355656028,1741443033360,-653.54,8.219e-05,2]
[355656029,1741443033370,-559.78,8.219e-05,2]
[355656030,1741443033380,-513.83,8.219e-05,2]
[355656031,1741443033390,-500.0,8.219e-05,2]
[355656032,1741443033399,-500.0,8.219e-05,2]
[355656033,1741443033409,-803.72,8.219e-05,2]
[355656034,1741443033419,-500.0,8.219e-05,2]
[355656035,1741443033429,-563.72,8.219e-05,2]
[355656036,1741443033439,-500.0,8.219e-05,2]
[355656037,1741443033448,-500.0,8.219e-05,2]
[355656038,1741443033458,-500.0,8.219e-05,2]
[355656039,1741443033467,-500.0,8.219e-05,2]
[355656040,1741443033476,-500.0,8.219e-05,2]
[355656041,1741443033486,-432.85,8.219e-05,2]
[355656042,1741443033496,-761.99,8.219e-05,2]
[355656043,1741443033506,-500.0,8.219e-05,2]
[355656044,1741443033516,-433.052602,8.219e-05,2]
[355656045,1741443033525,-592.61,8.219e-05,2]
[355656046,1741443033535,-786.73,8.219e-05,2]
[355656047,1741443033545,-500.0,8.219e-05,2]
[355656048,1741443033555,-1010.45,8.219e-05,2]
[355656049,1741443033565,-729.33,8.219e-05,2]
[355656050,1741443033574,-544.51,8.219e-05,2]
[355656051,1741443033584,-500.0,8.219e-05,2]
[355656052,1741443033594,-500.0,8.219e-05,2]
[355656053,1741443033604,-560.63276725,8.219e-05,2]
[355656054,1741443033613,-651.04,8.219e-05,2]
[355656055,1741443033623,-734.85,8.219e-05,2]
[355656056,1741443033633,-500.0,8.219e-05,2]
[355656057,1741443033643,-500.0,8.219e-05,2]
[355656058,1741443033653,-500.0,8.219e-05,2]
[355656059,1741443033663,-204.66618256,8.219e-05,2]
[355656060,1741443033673,-214.69006853,8.219e-05,2]
[355656061,1741443033682,-1249.74,8.219e-05,2]
[355656062,1741443033692,-511.29,8.219e-05,2]
[355656063,1741443033702,-500.0,8.219e-05,2]
[355656064,1741443033711,-500.0,8.219e-05,2]
[355656065,1741443033722,-500.0,8.219e-05,2]
[355656066,1741443033731,-500.0,8.219e-05,2]
[355656067,1741443033741,-151.0,8.219e-05,2]
[355656068,1741443033751,-500.0,8.219e-05,2]
[355656069,1741443033760,-151.0,8.219e-05,2]
[355656070,1741443033770,-151.0,8.219e-05,2]
[355656071,1741443033779,-151.0,8.219e-05,2]
[355656072,1741443033789,-151.0,8.219e-05,2]
[355656073,1741443033799,-151.0,8.219e-05,2]
[355656074,1741443033809,-739.08,8.219e-05,2]
[355656075,1741443033818,-901.97,8.219e-05,2]
[355656076,1741443033828,-506.97,8.219e-05,2]
[355656077,1741443033838,-700.65,8.219e-05,2]
[355656078,1741443033848,-500.0,8.219e-05,2]